fUST/lending_fUST_20250622
["ID","MTS","AMOUNT","RATE_DAILY","PERIOD"]
[366882510,1750546232636,-90.33887815,0.00022474,2]
[366882511,1750546232646,-460.0,0.00022474,2]
[366882512,1750546232657,-176.76615281,0.00022475,2]
[366882514,1750546232711,-283.23384719,0.00022475,2]
[366882515,1750546232721,-460.0,0.00022476,2]
[366882516,1750546232731,-460.0,0.00022476,2]
[366882517,1750546232740,-460.0,0.00022476,2]
[366882518,1750546232751,-460.0,0.00022998,2]
[366882519,1750546232760,-300.0,0.00022998,2]
[366882520,1750546232770,-300.0,0.00022998,2]
[366882521,1750546232780,-144.13154106,0.00022999,2]
[366882522,1750546232792,-326.64761876,0.00022999,2]
[366882523,1750546232802,-460.0,0.00022999,2]
[366882524,1750546232811,-460.0,0.00022999,2]
[366882525,1750546232820,-460.0,0.00022999,2]
[366882526,1750546232830,-339.84860106,0.00023095,73]
[366882527,1750546232840,-501.8160154,0.00023272,2]
[366882528,1750546232849,-500.0,0.00023315,2]
[366882529,1750546232859,-500.0,0.00023329,2]
[366882530,1750546232868,-500.0,0.00023367,2]
[366882531,1750546232878,-500.0,0.00023373,2]
[366882532,1750546232887,-500.0,0.00023379,2]
[366882533,1750546232897,-500.0,0.00023618,2]
[366882534,1750546232906,-460.0,0.00023626,2]
[366882535,1750546232916,-500.0,0.00023628,2]
[366882536,1750546232926,-500.0,0.00023631,2]
[366882537,1750546232936,-500.0,0.00023685,2]
[366882538,1750546232946,-500.0,0.00023724,2]
[366882539,1750546232957,-339.84860106,0.00023816,76]
[366882540,1750546232967,-209.90192955,0.000239,10]
[366882541,1750546232976,-523.9660634,0.00024,3]
[366882542,1750546232986,-209.90192951,0.00024033,10]
[366882543,1750546232996,-348.62832037,0.00024047,2]
[366882544,1750546233006,-500.0,0.00024158,2]
[366882545,1750546233016,-500.0,0.00024161,2]
[366882546,1750546233026,-209.90192951,0.00024167,10]
[366882547,1750546233035,-500.0,0.00024243,2]
[366882548,1750546233045,-209.90192951,0.000243,10]
[366882549,1750546233055,-367.0046263,0.00024411,2]
[366882550,1750546233065,-365.7551581,0.00024411,2]
[366882551,1750546233075,-365.7551581,0.00024411,2]
[366882552,1750546233085,-209.90192951,0.00024433,11]
[366882553,1750546233094,-500.0,0.0002444,2]
[366882554,1750546233104,-500.0,0.00024469,2]
[366882555,1750546233114,-339.84860106,0.00024537,79]
[366882556,1750546233124,-158.9019424,0.00024548,2]
[366882557,1750546233256,-573.8932911,0.00024548,2]
[366882558,1750546233267,-230.10342898,0.0002455,2]
[366882559,1750546233277,-846.23824438,0.0002455,2]
[366882560,1750546233287,-12549.17366507,0.0002455,2]
[366882561,1750546233297,-160.0,0.0002455,2]
[366882562,1750546233307,-209.90192951,0.00024567,11]
[366882563,1750546233317,-500.0,0.00024577,2]
[366882564,1750546233326,-1000.0,0.00024658,2]
[366882565,1750546233336,-500.0,0.00024671,2]
[366882566,1750546233346,-209.90192951,0.000247,11]
[366882567,1750546233356,-500.0,0.0002474,2]
[366882568,1750546233367,-9296.39556105,0.0002475,2]
[366882569,1750546233376,-907.99160626,0.00024798,2]
[366882570,1750546233386,-6104.34693367,0.000248,2]
[366882571,1750546233395,-500.0,0.00024811,2]
[366882572,1750546233405,-151.0,0.0002483,7]
[366882573,1750546233415,-209.90192951,0.00024833,12]
[366882574,1750546233425,-408.856975,0.00024839,4]
[366882575,1750546233435,-500.0,0.0002485,2]
[366882576,1750546233445,-315.33359372,0.00024856,2]
[366882577,1750546233456,-335.06947922,0.00024856,2]
[366882578,1750546233467,-500.0,0.00024856,2]
[366882579,1750546233477,-500.0,0.00024856,2]
[366882580,1750546233487,-500.0,0.00024856,2]
[366882581,1750546233497,-500.0,0.00024856,2]
[366882582,1750546233507,-500.0,0.00024856,2]
[366882583,1750546233516,-500.0,0.00024856,2]
[366882584,1750546233527,-500.0,0.00024856,2]
[366882585,1750546233537,-500.0,0.00024856,2]
[366882586,1750546233547,-500.0,0.00024856,2]
[366882587,1750546233557,-500.0,0.00024856,2]
[366882588,1750546233569,-500.0,0.00024856,2]
[366882589,1750546233579,-500.0,0.00024856,2]
[366882590,1750546233589,-500.0,0.00024856,2]
[366882591,1750546233599,-500.0,0.00024856,2]
[366882592,1750546233609,-202.90272313,0.00024856,2]
[366882593,1750546233619,-300.0,0.00024856,2]
[366882594,1750546233629,-29703.3681434,0.00024857,7]
[366882595,1750546233639,-160.0,0.00024857,7]
[366882596,1750546233649,-496.0,0.0002486,120]
[366882597,1750546233660,-496.0,0.0002486,120]
[366882598,1750546233670,-496.0,0.0002487,120]
[366882599,1750546233679,-496.0,0.0002487,120]
[366882600,1750546233688,-496.0,0.0002487,120]
[366882601,1750546233698,-500.0,0.00024877,2]
[366882602,1750546233709,-496.0,0.0002488,120]
[366882603,1750546233718,-496.0,0.0002488,120]
[366882604,1750546233729,-496.0,0.0002488,120]
[366882605,1750546233739,-207.4,0.00024885,2]
[366882606,1750546233749,-300.0,0.00024885,2]
[366882607,1750546233759,-800.0,0.00024885,2]
[366882608,1750546233770,-346.18962568,0.00024885,2]
[366882609,1750546233781,-800.0,0.00024885,2]
[366882610,1750546233791,-800.0,0.00024885,2]
[366882611,1750546233802,-800.0,0.00024885,2]
[366882612,1750546233812,-800.0,0.00024885,2]
[366882613,1750546233821,-800.0,0.00024885,2]
[366882614,1750546233831,-800.0,0.00024885,2]
[366882615,1750546233840,-900.0,0.00024885,2]
[366882616,1750546233850,-151.0,0.00024889,7]
[366882617,1750546233859,-151.0,0.000249,7]
[366882618,1750546233870,-1418.58,0.000249,2]
[366882619,1750546233879,-849.46,0.000249,7]
[366882620,1750546233889,-151.0,0.000249,7]
[366882621,1750546233898,-4424.83,0.000249,7]
[366882622,1750546233907,-180.819166,0.000249,7]
[366882623,1750546233917,-180.819166,0.000249,7]
[366882624,1750546233927,-151.0,0.000249,7]
[366882625,1750546233936,-151.0,0.000249,7]
[366882626,1750546233945,-151.0,0.000249,7]
[366882627,1750546233957,-168.47526753,0.000249,2]
[366882628,1750546233967,-151.0,0.000249,7]
[366882629,1750546233977,-151.0,0.000249,7]
[366882630,1750546233987,-151.0,0.000249,7]
[366882631,1750546233996,-151.0,0.000249,7]
[366882632,1750546234006,-151.0,0.000249,7]
[366882633,1750546234017,-151.0,0.000249,7]
[366882634,1750546234026,-151.0,0.000249,7]
[366882635,1750546234036,-151.0,0.000249,7]
[366882636,1750546234046,-151.0,0.000249,7]
[366882637,1750546234056,-281.110617,0.000249,7]
[366882638,1750546234065,-281.110617,0.000249,7]
[366882639,1750546234075,-420.0,0.00024966,2]
[366882640,1750546234085,-209.90192951,0.00024967,12]
[366882641,1750546234095,-166108.524498,0.0002498,2]
[366882642,1750546234104,-500.0,0.00024987,2]
[366882643,1750546234114,-425217.15425735,0.0002499,2]
[366882686,1750546240370,-10341.55032423,0.0002499,2]
[366882687,1750546240383,-798.3476449,0.0002499,2]
[366882688,1750546240395,-1070.16714045,0.0002499,2]
[366882689,1750546240407,-867.9702565,0.0002499,2]
[366882781,1750546245631,-234.54863546,0.00024855,2]
[366882782,1750546245642,-220.73351561,0.00024855,2]
[366882783,1750546245655,-56469.01181558,0.0002499,2]
[366882796,1750547129075,169.92430053,0.00022375,70]
[366882797,1750547238116,-5000.0,0.0002225,2]
[366882798,1750547238138,-160.0,0.00022475,2]
[366882799,1750547238158,-165.928655,0.00023339,2]
[366882800,1750547238179,-150.0,0.000236,2]
[366882801,1750547238201,-207.4,0.0002371,2]
[366882802,1750547238222,-160.0,0.00023845,2]
[366882803,1750547238251,-569.98516885,0.000239,10]
[366882804,1750547238280,-569.98516876,0.00023969,10]
[366882805,1750547238309,-569.98516876,0.00024038,10]
[366882806,1750547238330,-365.7551581,0.00024041,2]
[366882807,1750547238351,-365.7551581,0.00024041,2]
[366882808,1750547238372,-365.7551581,0.00024041,2]
[366882809,1750547238400,-569.98516876,0.00024107,10]
[366882810,1750547238428,-569.98516876,0.00024176,10]
[366882811,1750547238456,-168.0,0.00024227,2]
[366882812,1750547238478,-300.0,0.00024244,2]
[366882813,1750547238507,-569.98516876,0.00024245,10]
[366882814,1750547238537,-569.98516876,0.00024314,10]
[366882815,1750547238559,-176.703382,0.00024343,7]
[366882816,1750547238588,-569.98516876,0.00024383,11]
[366882817,1750547238610,-230.10342898,0.00024526,2]
[366882818,1750547238631,-300.0,0.00024657,2]
[366882819,1750547238782,-387.05869099,0.00024658,2]
[366882820,1750547238803,-1000.0,0.00024658,2]
[366882821,1750547238824,-1000.0,0.00024658,2]
[366882822,1750547238845,-1000.0,0.00024658,2]
[366882823,1750547238866,-460.0,0.00024799,2]
[366882824,1750547238892,-424.93363889,0.00024822,2]
[366882825,1750547238915,-350.448836,0.00024839,4]
[366882826,1750547238937,-500.0,0.00024884,7]
[366882827,1750547238959,-460.0,0.00024899,2]
[366882828,1750547238981,-1325.95,0.000249,2]
[366882829,1750547239002,-1936.27420494,0.000249,3]
[366882830,1750547239022,-150.5,0.0002496,120]
[366882831,1750547239044,-244.53,0.0002496,120]
[366882832,1750547239064,-150.5,0.0002497,120]
[366882833,1750547239086,-78.28000073,0.0002497,120]
[366882834,1750547244095,-569.98516876,0.00024452,11]
[366882835,1750547244127,-569.98516876,0.00024521,11]
[366882836,1750547244158,-569.98516876,0.0002459,11]
[366882837,1750547244188,-569.98516876,0.00024659,11]
[366882838,1750547244218,-569.98516876,0.00024728,11]
[366882839,1750547244249,-569.98516876,0.00024797,11]
[366882840,1750547244271,-424.93363889,0.0002482,2]
[366882841,1750547244302,-569.98516876,0.00024866,12]
[366882842,1750547244335,-569.98516876,0.00024934,12]
[366882843,1750547244356,-72.21999927,0.0002497,120]
[366882844,1750547244379,-500.0,0.00024973,2]
[366882845,1750547244402,-256.13507567,0.00024979,2]
[366882846,1750547244424,-164.18404482,0.00024979,2]
[366882847,1750547244450,-500.0,0.00024979,2]
[366882848,1750547244475,-500.0,0.00024979,2]
[366882849,1750547244502,-500.0,0.00024979,2]
[366882850,1750547244531,-500.0,0.00024979,2]
[366882851,1750547244557,-500.0,0.00024979,2]
[366882852,1750547244579,-179.29455296,0.00024979,2]
[366882853,1750547244605,-500.0,0.00024979,2]
[366882854,1750547244630,-500.0,0.00024979,2]
[366882855,1750547244655,-500.0,0.00024979,2]
[366882856,1750547244680,-515.62714022,0.00024979,2]
[366882857,1750547244701,-150.5,0.0002498,120]
[366882858,1750547244722,-150.5,0.0002498,120]
[366882859,1750547244743,-39154.1522032,0.0002498,2]
[366882860,1750547244764,-460.0,0.00024989,2]
[366882861,1750547244785,-460.0,0.00024989,2]
[366882862,1750547244805,-460.0,0.00024989,2]
[366882863,1750547244827,-544.25,0.00024989,2]
[366882864,1750547244849,-500.0,0.00024989,2]
[366882865,1750547244870,-166673.17906663,0.0002499,2]
[366882866,1750547244964,-129417.818967,0.0002499,2]
[366883019,1750547438678,-523.9660634,0.00024,3]
[366883020,1750547438688,-374.36939776,0.00024658,2]
[366883022,1750547438699,-1000.0,0.00024658,2]
[366883024,1750547438709,-300.384716,0.00024839,4]
[366883025,1750547438718,-300.0,0.00024889,2]
[366883026,1750547438729,-677.24814068,0.0002489,3]
[366883027,1750547438740,-2552.53061309,0.0002489,3]
[366883028,1750547438757,-257.3189741,0.0002289,2]
[366883029,1750547438767,-202.6810259,0.0002489,3]
[366883031,1750547438954,-466.86868585,0.0002489,3]
[366883068,1750547441082,-460.0,0.00022464,2]
[366883069,1750547441092,-460.0,0.00024798,2]
[366883070,1750547441102,-13459.757663,0.0002489,3]
[366883118,1750547443789,-460.0,0.00024727,2]
[366883119,1750547443799,-3736.00167166,0.0002489,3]
[366883120,1750547443809,-265.99307889,0.000249,12]
[366883121,1750547443818,-265.99307875,0.00024934,12]
[366883122,1750547443827,-265.99307875,0.00024969,12]
[366883123,1750547443836,-207.4,0.00024975,2]
[366883124,1750547443845,-460.0,0.0002498,2]
[366883125,1750547443855,-460.0,0.0002498,2]
[366883126,1750547443864,-778.42,0.0002498,10]
[366883127,1750547443874,-230.10342898,0.00024988,2]
[366883128,1750547443884,-500.0,0.00024989,2]
[366883129,1750547443894,-500.0,0.00024989,2]
[366883130,1750547443904,-500.0,0.00024989,2]
[366883131,1750547443914,-500.0,0.00024989,2]
[366883132,1750547443924,-500.0,0.00024989,2]
[366883133,1750547443934,-364.068992,0.00024989,2]
[366883134,1750547443944,-500.0,0.00024989,2]
[366883135,1750547443955,-500.0,0.00024989,2]
[366883136,1750547443966,-500.0,0.00024989,2]
[366883137,1750547443975,-444.52894445,0.00024989,2]
[366883138,1750547443985,-460.0,0.00024989,2]
[366883139,1750547443994,-460.0,0.00024989,2]
[366883140,1750547444003,-387.26,0.00024989,2]
[366883141,1750547444012,-3447.24118268,0.0002499,2]
[366883142,1750547444029,-460.0,0.00024798,2]
[366883143,1750547444039,-36860.11318882,0.0002499,2]
[366883148,1750547447178,-460.0,0.00024727,2]
[366883149,1750547447188,-460.0,0.00024799,2]
[366883150,1750547447198,-460.0,0.00024959,2]
[366883151,1750547447208,-432.99116479,0.00024989,2]
[366883152,1750547447217,-460.0,0.00024989,2]
[366883153,1750547447227,-187.42635321,0.00024989,2]
[366883154,1750547447527,-272.57364679,0.00024989,2]
[366883155,1750547447538,-460.0,0.00024989,2]
[366883156,1750547447548,-50306.87084977,0.0002499,2]
[366883157,1750547469739,300.0,0.000213,30]
[366883160,1750547620876,328.99232631,0.00022364,70]
[366883162,1750547784424,306.840719,0.00013699,2]
[366883163,1750547973698,30076.09132183,0.0002,120]
[366883164,1750548140375,263.19386108,0.000222,69]
[366883165,1750548145338,263.19386104,0.000222,69]
[366883166,1750548150329,263.19386104,0.00022676,71]
[366883167,1750548211456,-1245.65,0.00019588,2]
[366883168,1750548353737,171.54598274,0.000189,2]
[366883169,1750548404840,-233.6115,0.00019392,2]
[366883234,1750548637955,-5000.0,0.00019986,2]
[366883235,1750548637965,-306.840719,0.00020187,2]
[366883236,1750548637974,-207.799167,0.00020546,2]
[366883237,1750548637983,-359.4703468,0.00020574,2]
[366883238,1750548637991,-200.58115258,0.00021299,2]
[366883239,1750548638001,-208.34986696,0.00021299,2]
[366883240,1750548638010,-374.96591134,0.00021299,2]
[366883241,1750548638019,-359.62820591,0.00021299,2]
[366883242,1750548638031,-409.92231554,0.00021299,2]
[366883244,1750548638041,-500.0,0.00021299,2]
[366883245,1750548638050,-500.0,0.00021299,2]
[366883246,1750548638059,-500.0,0.00021299,2]
[366883247,1750548638068,-500.0,0.00021299,2]
[366883248,1750548638077,-2239.43963951,0.000213,5]
[366883249,1750548638087,-2239.43963931,0.000213,5]
[366883250,1750548638095,-2239.43963931,0.000213,5]
[366883251,1750548638104,-300.0,0.00021412,2]
[366883252,1750548638113,-245.0,0.00021412,2]
[366883253,1750548638123,-1200.0,0.00021412,2]
[366883254,1750548638132,-6495.46663,0.00021413,2]
[366883255,1750548638141,-300.0,0.00021414,2]
[366883256,1750548638150,-2239.43963931,0.00021417,5]
[366883257,1750548638159,-500.0,0.00021545,2]
[366883258,1750548638168,-500.0,0.00021545,2]
[366883259,1750548638177,-500.0,0.00021545,2]
[366883260,1750548638189,-269.07895369,0.00021545,2]
[366883261,1750548638198,-500.0,0.00021545,2]
[366883262,1750548638207,-500.0,0.00021545,2]
[366883263,1750548638216,-500.0,0.00021545,2]
[366883264,1750548638226,-500.0,0.00021545,2]
[366883265,1750548638235,-500.0,0.00021545,2]
[366883266,1750548638244,-500.0,0.00021545,2]
[366883267,1750548638255,-500.0,0.00021545,2]
[366883268,1750548638267,-500.0,0.00021545,2]
[366883269,1750548638276,-453.75223508,0.00021545,2]
[366883270,1750548638291,-176.4317179,0.00021545,2]
[366883271,1750548638302,-500.0,0.00021545,2]
[366883272,1750548638311,-500.0,0.00021545,2]
[366883273,1750548638320,-24900.0,0.00021546,2]
[366883274,1750548638329,-2239.43963931,0.0002159,5]
[366883275,1750548638341,-2239.43963931,0.00021762,5]
[366883276,1750548638352,-2401.12888771,0.0002181,2]
[366883277,1750548638361,-540.57,0.00021907,10]
[366883278,1750548638371,-450.48,0.00021907,10]
[366883279,1750548638381,-375.4,0.00021907,10]
[366883280,1750548638394,-460.0,0.00021917,2]
[366883281,1750548638403,-460.0,0.00021917,2]
[366883282,1750548638413,-460.0,0.00021917,2]
[366883283,1750548638423,-460.0,0.00021917,2]
[366883284,1750548638432,-463.6659859,0.00021917,2]
[366883285,1750548638442,-460.0,0.00021917,2]
[366883286,1750548638452,-460.0,0.00021917,2]
[366883287,1750548638461,-460.0,0.00021917,2]
[366883288,1750548638470,-460.0,0.00021917,2]
[366883289,1750548638479,-455.64726607,0.00021917,2]
[366883290,1750548638489,-320.57048244,0.00021917,2]
[366883291,1750548638498,-563.01230618,0.00021917,2]
[366883292,1750548638511,-460.0,0.00021917,2]
[366883293,1750548638520,-460.0,0.00021917,2]
[366883294,1750548638531,-460.0,0.00021917,2]
[366883295,1750548638541,-460.0,0.00021917,2]
[366883296,1750548638551,-460.0,0.00021917,2]
[366883297,1750548638560,-460.0,0.00021917,2]
[366883298,1750548638570,-460.0,0.00021917,2]
[366883299,1750548638580,-460.0,0.00021917,2]
[366883300,1750548638589,-460.0,0.00021917,2]
[366883301,1750548638599,-460.0,0.00021917,2]
[366883302,1750548638608,-460.0,0.00021917,2]
[366883303,1750548638617,-222.62,0.00021917,2]
[366883304,1750548638627,-460.0,0.00021917,2]
[366883305,1750548638636,-435.02236886,0.00021917,2]
[366883306,1750548638646,-460.0,0.00021917,2]
[366883307,1750548638655,-460.0,0.00021917,2]
[366883308,1750548638664,-460.0,0.00021917,2]
[366883309,1750548638674,-460.0,0.00021917,2]
[366883310,1750548638684,-510.374031,0.00021917,2]
[366883311,1750548638694,-460.0,0.00021917,2]
[366883312,1750548638703,-460.0,0.00021917,2]
[366883313,1750548638713,-460.0,0.00021917,2]
[366883314,1750548638722,-460.0,0.00021917,2]
[366883315,1750548638732,-460.0,0.00021917,2]
[366883316,1750548638742,-460.0,0.00021917,2]
[366883317,1750548638751,-460.0,0.00021917,2]
[366883318,1750548638761,-501.71485794,0.00021917,2]
[366883319,1750548638770,-438.9613771,0.00021917,2]
[366883320,1750548638783,-460.0,0.00021917,2]
[366883321,1750548638792,-460.0,0.00021917,2]
[366883322,1750548638801,-460.0,0.00021917,2]
[366883323,1750548638811,-460.0,0.00021917,2]
[366883324,1750548638819,-433.94205701,0.00021917,2]
[366883325,1750548638828,-460.0,0.00021917,2]
[366883326,1750548638838,-460.0,0.00021917,2]
[366883327,1750548638848,-460.0,0.00021917,2]
[366883328,1750548638858,-460.0,0.00021917,2]
[366883329,1750548638868,-460.0,0.00021917,2]
[366883330,1750548638879,-435.34251866,0.00021917,2]
[366883331,1750548638887,-460.0,0.00021917,2]
[366883332,1750548638897,-460.0,0.00021917,2]
[366883333,1750548638906,-460.0,0.00021917,2]
[366883334,1750548638916,-482.82455642,0.00021917,2]
[366883335,1750548638926,-438.30768605,0.00021917,2]
[366883336,1750548638935,-460.0,0.00021917,2]
[366883337,1750548638945,-460.0,0.00021917,2]
[366883338,1750548638955,-548.22,0.00021917,2]
[366883339,1750548638964,-460.0,0.00021917,2]
[366883340,1750548638973,-476.84006694,0.00021917,2]
[366883341,1750548638983,-460.0,0.00021917,2]
[366883342,1750548638993,-460.0,0.00021917,2]
[366883343,1750548639003,-372.01325315,0.00021917,2]
[366883344,1750548639013,-460.0,0.00021917,2]
[366883345,1750548639022,-431.42954615,0.00021917,2]
[366883346,1750548639035,-460.0,0.00021917,2]
[366883347,1750548639044,-460.0,0.00021917,2]
[366883348,1750548639053,-460.0,0.00021917,2]
[366883349,1750548639063,-503.71871251,0.00021917,2]
[366883350,1750548639072,-460.0,0.00021917,2]
[366883351,1750548639082,-411.46571415,0.00021917,2]
[366883352,1750548639091,-460.0,0.00021917,2]
[366883353,1750548639099,-460.0,0.00021917,2]
[366883354,1750548639108,-460.0,0.00021917,2]
[366883355,1750548639117,-225.85361635,0.00021917,2]
[366883356,1750548639127,-435.1746248,0.00021917,2]
[366883357,1750548639136,-460.0,0.00021917,2]
[366883358,1750548639145,-460.0,0.00021917,2]
[366883359,1750548639154,-460.0,0.00021917,2]
[366883360,1750548639164,-460.0,0.00021917,2]
[366883361,1750548639173,-163.70109289,0.00021917,2]
[366883362,1750548639183,-460.0,0.00021917,2]
[366883363,1750548639192,-460.0,0.00021917,2]
[366883364,1750548639201,-460.0,0.00021917,2]
[366883365,1750548639211,-460.0,0.00021917,2]
[366883366,1750548639220,-460.0,0.00021917,2]
[366883367,1750548639229,-460.0,0.00021917,2]
[366883368,1750548639239,-435.39795241,0.00021917,2]
[366883369,1750548639248,-460.0,0.00021917,2]
[366883370,1750548639259,-460.0,0.00021917,2]
[366883371,1750548639269,-358.36902913,0.00021917,2]
[366883372,1750548639283,-439.05837421,0.00021917,2]
[366883373,1750548639292,-460.0,0.00021917,2]
[366883374,1750548639302,-460.0,0.00021917,2]
[366883375,1750548639311,-460.0,0.00021917,2]
[366883376,1750548639320,-460.0,0.00021917,2]
[366883377,1750548639330,-460.0,0.00021917,2]
[366883378,1750548639340,-460.0,0.00021917,2]
[366883379,1750548639351,-460.0,0.00021917,2]
[366883380,1750548639360,-451.171914,0.00021917,2]
[366883381,1750548639370,-460.0,0.00021917,2]
[366883382,1750548639381,-460.0,0.00021917,2]
[366883383,1750548639390,-460.0,0.00021917,2]
[366883384,1750548639399,-427.97651497,0.00021917,2]
[366883385,1750548639408,-460.0,0.00021917,2]
[366883386,1750548639417,-364.5395333,0.00021917,2]
[366883387,1750548639426,-460.0,0.00021917,2]
[366883388,1750548639436,-460.0,0.00021917,2]
[366883389,1750548639445,-460.0,0.00021917,2]
[366883390,1750548639455,-430.0,0.00021917,2]
[366883391,1750548639464,-433.80887487,0.00021917,2]
[366883392,1750548639474,-460.0,0.00021917,2]
[366883394,1750548639483,-460.0,0.00021917,2]
[366883395,1750548639493,-460.0,0.00021917,2]
[366883396,1750548639502,-2239.43963931,0.00021934,6]
[366883397,1750548639512,-964.22,0.00021942,3]
[366883398,1750548639521,-482.11,0.00021942,3]
[366883399,1750548639533,-241.05,0.00021942,3]
[366883400,1750548639542,-723.19,0.00021942,3]
[366883401,1750548639552,-648.69,0.00021942,10]
[366883402,1750548639561,-639.63989775,0.00021952,2]
[366883403,1750548639571,-3341.16279012,0.00021952,2]
[366883404,1750548639579,-80779.70600853,0.00021952,2]
[366883405,1750548639589,-446.35625141,0.00021973,2]
[366883406,1750548639598,-184.66185535,0.00021988,2]
[366883407,1750548639608,-170.0,0.00022,2]
[366883408,1750548639617,-2239.43963931,0.00022107,6]
[366883409,1750548639713,-500.0,0.00022175,2]
[366883410,1750548639725,-343.94054451,0.00022277,2]
[366883411,1750548639734,-460.0,0.00022277,2]
[366883412,1750548639744,-389.48320959,0.00022277,2]
[366883413,1750548639754,-452.71929364,0.00022277,2]
[366883414,1750548639763,-552.22394795,0.00022277,2]
[366883416,1750548639773,-476.19,0.00022277,2]
[366883418,1750548639785,-460.0,0.00022277,2]
[366883420,1750548639795,-460.0,0.00022277,2]
[366883422,1750548639804,-460.0,0.00022277,2]
[366883424,1750548639814,-460.0,0.00022277,2]
[366883425,1750548639823,-327.94808545,0.00022277,2]
[366883427,1750548639832,-460.0,0.00022277,2]
[366883429,1750548639841,-460.0,0.00022277,2]
[366883431,1750548639851,-460.0,0.00022277,2]
[366883433,1750548639860,-460.0,0.00022278,2]
[366883435,1750548639870,-460.0,0.00022278,2]
[366883437,1750548639879,-460.0,0.00022278,2]
[366883439,1750548639889,-460.0,0.00022278,2]
[366883441,1750548639898,-446.76135558,0.00022278,2]
[366883443,1750548639907,-443.46265963,0.00022278,2]
[366883445,1750548639917,-460.0,0.00022278,2]
[366883447,1750548639926,-306.75173469,0.00022278,2]
[366883449,1750548639935,-460.0,0.00022278,2]
[366883451,1750548639944,-460.0,0.00022278,2]
[366883452,1750548639954,-460.0,0.00022278,2]
[366883454,1750548639963,-449.94022959,0.00022278,2]
[366883456,1750548639972,-453.76434069,0.00022278,2]
[366883458,1750548639981,-407.05722298,0.00022278,2]
[366883460,1750548639991,-460.0,0.00022278,2]
[366883463,1750548640000,-460.0,0.00022278,2]
[366883465,1750548640009,-460.0,0.00022278,2]
[366883467,1750548640019,-460.0,0.00022278,2]
[366883469,1750548640028,-460.0,0.00022278,2]
[366883471,1750548640039,-460.0,0.00022278,2]
[366883473,1750548640049,-430.0,0.00022278,2]
[366883475,1750548640058,-520.19,0.00022278,2]
[366883477,1750548640068,-460.0,0.00022278,2]
[366883479,1750548640078,-460.0,0.00022278,2]
[366883481,1750548640087,-460.0,0.00022278,2]
[366883483,1750548640096,-460.0,0.00022278,2]
[366883485,1750548640106,-460.0,0.00022278,2]
[366883487,1750548640115,-460.0,0.00022278,2]
[366883489,1750548640124,-2239.43963931,0.00022279,6]
[366883491,1750548640134,-1075.32,0.000223,7]
[366883493,1750548640143,-2239.43963931,0.00022452,7]
[366883495,1750548640152,-460.0,0.00022463,2]
[366883497,1750548640161,-460.0,0.00022463,2]
[366883499,1750548640171,-460.0,0.00022463,2]
[366883501,1750548640180,-460.0,0.00022463,2]
[366883503,1750548640189,-492.24077613,0.00022463,2]
[366883505,1750548640199,-460.0,0.00022463,2]
[366883507,1750548640208,-460.0,0.00022463,2]
[366883509,1750548640217,-460.0,0.00022463,2]
[366883511,1750548640227,-460.0,0.00022463,2]
[366883513,1750548640236,-460.0,0.00022464,2]
[366883515,1750548640246,-460.0,0.00022464,2]
[366883517,1750548640255,-417.74314115,0.00022464,2]